fUST/lending_fUST_20240210
["ID","MTS","AMOUNT","RATE_DAILY","PERIOD"]
[313661226,1707552647251,-500.0,0.00022027,2]
[313661227,1707552647260,-500.0,0.00022027,2]
[313661228,1707552647269,-500.0,0.00022027,2]
[313661229,1707552647278,-1708.18,0.00022027,2]
[313661230,1707552647288,-900.06,0.00022027,2]
[313661231,1707552647297,-500.0,0.00022027,2]
[313661232,1707552647308,-500.0,0.00022027,2]
[313661233,1707552647318,-500.0,0.00022027,2]
[313661234,1707552647327,-1955.77,0.00022027,2]
[313661235,1707552647336,-500.0,0.00022027,2]
[313661236,1707552647345,-2677.83,0.00022027,2]
[313661237,1707552647354,-500.0,0.00022027,2]
[313661238,1707552647363,-11240.28,0.00022027,2]
[313661239,1707552647372,-717.67,0.00022027,2]
[313661240,1707552647381,-626.8846234,0.00022027,2]
[313661241,1707552647390,-2410.93,0.00022027,2]
[313661242,1707552647399,-8675.33,0.00022027,2]
[313661243,1707552647408,-1464.26,0.00022027,2]
[313661244,1707552647417,-2269.9,0.00022027,2]
[313661245,1707552647426,-6049.76,0.00022027,2]
[313661246,1707552647435,-1026.21,0.00022027,2]
[313661247,1707552647444,-1094.41,0.00022027,2]
[313661248,1707552647453,-2175.63,0.00022027,2]
[313661249,1707552647463,-820.92,0.00022027,2]
[313661250,1707552647472,-1381.3,0.00022027,2]
[313661251,1707552647481,-500.0,0.00022027,2]
[313661252,1707552647490,-500.0,0.00022027,2]
[313661253,1707552647499,-11266.57,0.00022027,2]
[313661254,1707552647508,-568.1,0.00022027,2]
[313661255,1707552647517,-500.0,0.00022027,2]
[313661256,1707552647527,-11609.81,0.00022027,2]
[313661257,1707552647536,-20315.82,0.00022027,2]
[313661258,1707552647545,-500.0,0.00022027,2]
[313661259,1707552647555,-500.0,0.00022027,2]
[313661260,1707552647564,-936.11,0.00022027,2]
[313661261,1707552647573,-500.0,0.00022027,2]
[313661262,1707552647582,-603.73,0.00022027,2]
[313661263,1707552647592,-640.26,0.00022027,2]
[313661264,1707552647600,-500.0,0.00022027,2]
[313661265,1707552647609,-500.0,0.00022027,2]
[313661266,1707552647618,-390.77891299,0.00022027,2]
[313661267,1707552647627,-1659.62,0.00022027,2]
[313661268,1707552647636,-926.44,0.00022027,2]
[313661269,1707552647645,-500.0,0.00022027,2]
[313661270,1707552647654,-651.73,0.00022027,2]
[313661271,1707552647663,-500.0,0.00022027,2]
[313661272,1707552647672,-545.16212741,0.00022027,2]
[313661273,1707552647681,-500.0,0.00022027,2]
[313661274,1707552647690,-1044.54,0.00022027,2]
[313661275,1707552647699,-6637.07,0.00022027,2]
[313661276,1707552647708,-1068.57,0.00022027,2]
[313661277,1707552647718,-500.0,0.00022027,2]
[313661278,1707552647727,-5363.07,0.00022027,2]
[313661279,1707552647736,-1405.6,0.00022027,2]
[313661280,1707552647746,-2105.6,0.00022027,2]
[313661281,1707552647757,-8074.38,0.00022027,2]
[313661282,1707552647767,-500.0,0.00022136,2]
[313661283,1707552647775,-500.0,0.00022136,2]
[313661284,1707552647785,-500.0,0.00022136,2]
[313661285,1707552647794,-320.35512647,0.00022136,2]
[313661286,1707552647803,-500.0,0.00022136,2]
[313661287,1707552647812,-500.0,0.00022136,2]
[313661288,1707552647822,-834.19,0.00022136,2]
[313661289,1707552647832,-500.0,0.00022136,2]
[313661290,1707552647842,-500.0,0.00022136,2]
[313661291,1707552647851,-500.0,0.00022136,2]
[313661292,1707552647860,-520.11,0.00022136,2]
[313661293,1707552647869,-1893.27,0.00022136,2]
[313661294,1707552647878,-151.0,0.00022136,2]
[313661295,1707552647887,-151.0,0.00022136,2]
[313661296,1707552647896,-500.0,0.00022136,2]
[313661297,1707552647905,-1998.72,0.00022136,2]
[313661298,1707552647914,-500.0,0.00022136,2]
[313661299,1707552647923,-620.97644391,0.00022136,2]
[313661300,1707552647933,-500.0,0.00022136,2]
[313661301,1707552647942,-1708.18,0.00022136,2]
[313661302,1707552647951,-900.06,0.00022136,2]
[313661303,1707552647959,-500.0,0.00022136,2]
[313661304,1707552647969,-500.0,0.00022136,2]
[313661305,1707552647978,-500.0,0.00022136,2]
[313661306,1707552647987,-1955.77,0.00022136,2]
[313661307,1707552647997,-500.0,0.00022136,2]
[313661308,1707552648006,-2677.83,0.00022136,2]
[313661309,1707552648015,-500.0,0.00022136,2]
[313661310,1707552648024,-7711.1478101,0.00022136,2]
[313662257,1707552806840,280.0,0.0003,120]
[313662486,1707552976259,2000.0,0.00029,30]
[313662893,1707553509906,377.8,0.0003,120]
[313662989,1707553650088,-1406.8167912,0.00019926,2]
[313663054,1707553832183,-590.3509011,0.00019921,2]
[313663055,1707553832192,-90.22289889,0.00019922,2]
[313663076,1707553838330,-77.35823025,0.00019922,2]
[313663077,1707553838340,-2593.1832088,0.00019926,2]
[313663078,1707553838350,-288.7951024,0.00020787,2]
[313663079,1707553838360,-620.04051855,0.00021607,2]
[313663080,1707553838370,-155.07288426,0.00021816,2]
[313663081,1707553838378,-53377.25999749,0.00021817,2]
[313663082,1707553838388,-310.14731999,0.00021915,2]
[313663084,1707553838397,-156.24915184,0.00021916,2]
[313663086,1707553838406,-500.0,0.00021916,2]
[313663087,1707553838415,-500.0,0.00021916,2]
[313663088,1707553838424,-500.0,0.00021916,2]
[313663089,1707553838433,-500.0,0.00021916,2]
[313663090,1707553838442,-341.37946235,0.00021916,2]
[313663091,1707553838451,-494.02856626,0.00021916,2]
[313663092,1707553838460,-500.0,0.00021916,2]
[313663093,1707553838469,-500.0,0.00021917,2]
[313663094,1707553838478,-787.55,0.00021917,2]
[313663095,1707553838487,-500.0,0.00021917,2]
[313663096,1707553838496,-500.0,0.00021917,2]
[313663097,1707553838505,-500.0,0.00021917,2]
[313663098,1707553838514,-500.0,0.00021917,2]
[313663099,1707553838523,-500.0,0.00021917,2]
[313663100,1707553838532,-500.0,0.00021917,2]
[313663101,1707553838541,-500.0,0.00021917,2]
[313663102,1707553838550,-1009.90812967,0.00021917,5]
[313663103,1707553838560,-1762.45,0.00021917,2]
[313663104,1707553838569,-752.51,0.00021917,2]
[313663105,1707553838578,-500.0,0.00021917,2]
[313663106,1707553838587,-500.0,0.00021917,2]
[313663107,1707553838595,-500.0,0.00021917,2]
[313663108,1707553838605,-500.0,0.00021917,2]
[313663109,1707553838614,-1266.19,0.00021917,2]
[313663110,1707553838622,-500.0,0.00021917,2]
[313663111,1707553838631,-500.0,0.00021917,2]
[313663112,1707553838640,-500.0,0.00021917,2]
[313663113,1707553838649,-500.0,0.00021917,2]
[313663114,1707553838658,-500.0,0.00021917,2]
[313663115,1707553838668,-957.49,0.00021917,2]
[313663116,1707553838677,-2343.1,0.00021917,2]
[313663117,1707553838686,-1288.47,0.00021917,2]
[313663118,1707553838695,-979.52,0.00021917,2]
[313663119,1707553838704,-500.0,0.00021917,2]
[313663120,1707553838712,-4916.15,0.00021917,2]
[313663121,1707553838721,-500.0,0.00021917,2]
[313663122,1707553838730,-7401.52,0.00021917,2]
[313663123,1707553838739,-849.24,0.00021917,2]
[313663124,1707553838748,-1930.14,0.00021917,2]
[313663125,1707553838757,-597.42,0.00021917,2]
[313663126,1707553838766,-500.0,0.00021917,2]
[313663127,1707553838775,-500.0,0.00021917,2]
[313663128,1707553838784,-500.0,0.00021917,2]
[313663129,1707553838793,-9982.3,0.00021917,2]
[313663130,1707553838802,-657.87,0.00021917,2]
[313663131,1707553838811,-292.77679659,0.00021917,2]
[313663132,1707553838820,-5153.96959614,0.00021917,2]
[313663158,1707553841378,-5488.36040386,0.00021917,2]
[313663159,1707553841387,-1003.21,0.00021917,2]
[313663160,1707553841397,-1748.88,0.00021917,2]
[313663161,1707553841406,-5546.06725314,0.00021917,2]
[313663162,1707553841422,-2406.32274686,0.00021917,2]
[313663163,1707553841431,-1015.49095876,0.00021917,2]
[313663165,1707553841442,-1194.52904124,0.00021917,2]
[313663167,1707553841452,-858.1,0.00021917,2]
[313663169,1707553841461,-500.0,0.00021917,2]
[313663172,1707553841470,-1494.66,0.00021917,2]
[313663175,1707553841480,-1931.62652923,0.00021917,2]
[313663176,1707553841491,-62.70347077,0.00021917,2]
[313663177,1707553841500,-8176.83010875,0.00021917,2]
[313663178,1707553841511,-8890.70797669,0.00021917,2]
[313663202,1707553846329,-1555.29191456,0.00021917,2]
[313663204,1707553846338,-9728.30808579,0.00021917,2]
[313663206,1707553846350,-599.38191421,0.00021917,2]
[313663207,1707553846359,-1886.1655645,0.00021917,2]
[313663208,1707553846370,-1254.71338878,0.00021917,2]
[313663217,1707553873684,2000.0,0.00029,30]
[313663451,1707554773015,150.0,0.00029,30]
[313663705,1707555038574,-1840.2503371,0.00020329,2]
[313663706,1707555038586,-37473.9905815,0.00020329,2]
[313663707,1707555038595,-1638.3538228,0.00020826,2]
[313663708,1707555038605,-200.0,0.00021345,7]
[313663709,1707555038615,-2291.91,0.00021794,3]
[313663710,1707555038624,-1909.92,0.00021794,3]
[313663711,1707555038633,-83937.39539652,0.00021804,2]
[313663712,1707555038642,-221.55872958,0.00021804,2]
[313663713,1707555038651,-19138.64568776,0.00021805,2]
[313663714,1707555038661,-200.0032966,0.000219,2]
[313663716,1707555038670,-34280.01708326,0.00021915,2]
[313663717,1707555038678,-167.40104025,0.00021916,2]
[313663718,1707555038688,-500.0,0.00021917,2]
[313663719,1707555038696,-500.0,0.00021917,2]
[313663720,1707555038706,-500.0,0.00021917,2]
[313663721,1707555038715,-721.16,0.00021917,2]
[313663722,1707555038723,-500.0,0.00021917,2]
[313663723,1707555038732,-500.0,0.00021917,2]
[313663724,1707555038741,-500.0,0.00021917,2]
[313663725,1707555038750,-500.0,0.00021917,2]
[313663726,1707555038758,-500.0,0.00021917,2]
[313663727,1707555038767,-151.0,0.00021917,2]
[313663728,1707555038776,-151.0,0.00021917,2]
[313663729,1707555038785,-500.0,0.00021917,2]
[313663730,1707555038794,-500.0,0.00021917,2]
[313663731,1707555038803,-500.0,0.00021917,2]
[313663732,1707555038812,-500.0,0.00021917,2]
[313663733,1707555038821,-500.0,0.00021917,2]
[313663734,1707555038830,-500.0,0.00021917,2]
[313663735,1707555038839,-9897.37,0.00021917,2]
[313663736,1707555038848,-455.96972701,0.00021917,2]
[313663737,1707555038857,-1689.01,0.00021917,2]
[313663738,1707555038866,-500.0,0.00021917,2]
[313663739,1707555038875,-500.0,0.00021917,2]
[313663740,1707555038884,-500.0,0.00021917,2]
[313663741,1707555038893,-586.91,0.00021917,2]
[313663742,1707555038902,-185.0083529,0.00021917,2]
[313663743,1707555038913,-500.0,0.00021917,2]
[313663744,1707555038922,-729.92,0.00021917,2]
[313663745,1707555038931,-500.0,0.00021917,2]
[313663746,1707555038941,-500.0,0.00021917,2]
[313663747,1707555038950,-2245.47,0.00021917,2]
[313663748,1707555038959,-500.0,0.00021917,2]
[313663749,1707555038968,-500.0,0.00021917,2]
[313663750,1707555038977,-9566.37,0.00021917,2]
[313663751,1707555038987,-500.0,0.00021917,2]
[313663752,1707555038996,-961.41,0.00021917,2]
[313663753,1707555039005,-630.46,0.00021917,2]
[313663754,1707555039014,-822.34,0.00021917,2]
[313663755,1707555039023,-7621.04,0.00021917,2]
[313663756,1707555039032,-1911.23,0.00021917,2]
[313663757,1707555039041,-917.6,0.00021917,2]
[313663758,1707555039050,-1213.43,0.00021917,2]
[313663759,1707555039059,-500.0,0.00021917,2]
[313663760,1707555039068,-17846.88,0.00021917,2]
[313663761,1707555039078,-5414.74,0.00021917,2]
[313663762,1707555039087,-500.0,0.00021917,2]
[313663763,1707555039097,-2117.94,0.00021917,2]
[313663764,1707555039105,-4711.31,0.00021917,2]
[313663765,1707555039115,-940.69,0.00021917,2]
[313663766,1707555039124,-1521.32,0.00021917,2]
[313663767,1707555039134,-500.0,0.00021917,2]
[313663768,1707555039143,-7093.12,0.00021917,2]
[313663769,1707555039152,-1342.24,0.00021917,2]
[313663770,1707555039162,-500.0,0.00021917,2]
[313663771,1707555039172,-1849.71,0.00021917,2]
[313663772,1707555039181,-2080.74,0.00021917,2]
[313663773,1707555039190,-10239.26,0.00021917,2]
[313663774,1707555039199,-487.65756527,0.00021917,2]
[313663775,1707555039208,-553.42,0.00021917,2]
[313663776,1707555039217,-500.0,0.00021917,2]
[313663777,1707555039226,-500.0,0.00021917,2]
[313663778,1707555039235,-500.0,0.00021917,2]
[313663779,1707555039244,-754.73,0.00021917,2]
[313663780,1707555039252,-1432.38,0.00021917,2]
[313663781,1707555039261,-813.85,0.00021917,2]
[313663782,1707555039270,-572.53,0.00021917,2]
[313663783,1707555039279,-6083.98,0.00021917,2]
[313663784,1707555039289,-938.71,0.00021917,2]
[313663785,1707555039298,-500.0,0.00021917,2]
[313663786,1707555039307,-500.0,0.00021917,2]
[313663787,1707555039316,-1234.78,0.00021917,2]
[313663788,1707555039325,-500.0,0.00021917,2]
[313663789,1707555039335,-500.0,0.00021917,2]
[313663790,1707555039344,-1711.3,0.00021917,2]
[313663791,1707555039353,-1682.05,0.00021917,2]
[313663792,1707555039361,-166.666666,0.00021918,2]
[313663793,1707555039370,-153.0,0.00021918,2]
[313663794,1707555039379,-677.17250505,0.00021925,2]
[313663795,1707555039388,-4277.49348975,0.00021927,2]
[313663796,1707555039397,-153.0,0.00022,2]
[313663797,1707555039407,-307.3837307,0.00022,2]
[313663798,1707555039416,-153.600318,0.00022,2]
[313663799,1707555039425,-153.0,0.00022,2]
[313663800,1707555039438,-200.0032966,0.00022,2]
[313663801,1707555039446,-399.9075736,0.00022,2]
[313663803,1707555039597,-153.0,0.00022,2]
[313663804,1707555039607,-153.0,0.00022,2]
[313663805,1707555039617,-153.0,0.00022,2]
[313663806,1707555039627,-919.73573719,0.00022024,2]
[313663807,1707555039636,-156.20177159,0.00022025,2]
[313663808,1707555039645,-375.905843,0.00022025,2]
[313663809,1707555039654,-20933.53573456,0.00022025,2]
[313663810,1707555039664,-2110.10399171,0.00022025,2]
[313663811,1707555039674,-19922.00560303,0.00022025,2]
[313663812,1707555039684,-151.0,0.00022025,2]
[313663813,1707555039693,-709.18226551,0.00022026,2]
[313663814,1707555039702,-37068.7030693,0.00022026,2]
[313663815,1707555039711,-151.0,0.00022026,2]
[313663816,1707555039721,-500.0,0.00022027,2]
[313663817,1707555039730,-500.0,0.00022027,2]
[313663818,1707555039739,-500.0,0.00022027,2]
[313663819,1707555039749,-721.16,0.00022027,2]
[313663820,1707555039758,-449.77174149,0.00022027,2]
[313663821,1707555039769,-500.0,0.00022027,2]
[313663822,1707555039778,-500.0,0.00022027,2]
[313663823,1707555039788,-151.0,0.00022027,2]
[313663824,1707555039797,-500.0,0.00022027,2]
[313663825,1707555039807,-500.0,0.00022027,2]
[313663826,1707555039817,-500.0,0.00022027,2]
[313663827,1707555039829,-500.0,0.00022027,2]
[313663828,1707555039838,-500.0,0.00022027,2]
[313663829,1707555039847,-9897.37,0.00022027,2]
[313663830,1707555039856,-1689.01,0.00022027,2]
[313663831,1707555039865,-500.0,0.00022027,2]
[313663832,1707555039874,-586.91,0.00022027,2]
[313663833,1707555039884,-729.92,0.00022027,2]
[313663834,1707555039893,-500.0,0.00022027,2]
[313663835,1707555039902,-500.0,0.00022027,2]
[313663836,1707555039912,-2245.47,0.00022027,2]
[313663837,1707555039921,-500.0,0.00022027,2]
[313663838,1707555039930,-500.0,0.00022027,2]
[313663839,1707555039939,-9566.37,0.00022027,2]
[313663840,1707555039948,-500.0,0.00022027,2]
[313663841,1707555039958,-961.41,0.00022027,2]
[313663842,1707555039967,-630.46,0.00022027,2]
[313663843,1707555039976,-822.34,0.00022027,2]
[313663844,1707555039985,-7621.04,0.00022027,2]
[313663845,1707555039994,-1911.23,0.00022027,2]
[313663846,1707555040003,-917.6,0.00022027,2]
[313663847,1707555040012,-1213.43,0.00022027,2]
[313663848,1707555040020,-500.0,0.00022027,2]
[313663849,1707555040029,-17846.88,0.00022027,2]
[313663850,1707555040038,-5414.74,0.00022027,2]
[313663851,1707555040059,-500.0,0.00022027,2]
[313663852,1707555040070,-2117.94,0.00022027,2]
[313663853,1707555040080,-4711.31,0.00022027,2]
[313663854,1707555040090,-940.69,0.00022027,2]
[313663855,1707555040099,-1521.32,0.00022027,2]
[313663856,1707555040109,-500.0,0.00022027,2]
[313663857,1707555040118,-7093.12,0.00022027,2]
[313663858,1707555040128,-1342.24,0.00022027,2]
[313663859,1707555040138,-500.0,0.00022027,2]
[313663860,1707555040148,-1849.71,0.00022027,2]
[313663861,1707555040158,-2080.74,0.00022027,2]
[313663862,1707555040168,-10239.26,0.00022027,2]
[313663863,1707555040177,-553.42,0.00022027,2]
[313663864,1707555040187,-500.0,0.00022027,2]
[313663865,1707555040196,-500.0,0.00022027,2]
[313663866,1707555040206,-500.0,0.00022027,2]
[313663867,1707555040216,-754.73,0.00022027,2]
[313663868,1707555040225,-1432.38,0.00022027,2]
[313663869,1707555040235,-813.85,0.00022027,2]
[313663870,1707555040244,-572.53,0.00022027,2]
[313663871,1707555040254,-6083.98,0.00022027,2]
[313663872,1707555040264,-938.71,0.00022027,2]
[313663873,1707555040274,-500.0,0.00022027,2]
[313663874,1707555040285,-500.0,0.00022027,2]
[313663875,1707555040295,-1234.78,0.00022027,2]
[313663876,1707555040304,-500.0,0.00022027,2]
[313663877,1707555040316,-500.0,0.00022027,2]
[313663878,1707555040327,-1711.3,0.00022027,2]
[313663879,1707555040336,-1682.05,0.00022027,2]
[313663880,1707555040345,-155.07288426,0.00022134,2]
[313663881,1707555040355,-261.88794378,0.00022134,2]
[313663882,1707555040365,-427.24464531,0.00022134,2]
[313663883,1707555040374,-167.19218389,0.00022134,2]
[313663884,1707555040384,-500.0,0.00022136,2]
[313663885,1707555040393,-500.0,0.00022136,2]
[313663886,1707555040402,-500.0,0.00022136,2]
[313663887,1707555040412,-721.16,0.00022136,2]
[313663888,1707555040422,-500.0,0.00022136,2]
[313663889,1707555040434,-500.0,0.00022136,2]
[313663890,1707555040444,-500.0,0.00022136,2]
[313663891,1707555040453,-500.0,0.00022136,2]
[313663892,1707555040462,-500.0,0.00022136,2]
[313663893,1707555040472,-426.30316685,0.00022136,2]
[313663894,1707555040483,-500.0,0.00022136,2]
[313663895,1707555040493,-9897.37,0.00022136,2]
[313663896,1707555040502,-1689.01,0.00022136,2]
[313663897,1707555040514,-302.49844096,0.00022136,2]
[313663898,1707555040524,-586.91,0.00022136,2]
[313663899,1707555040534,-729.92,0.00022136,2]
[313663900,1707555040544,-500.0,0.00022136,2]
[313663901,1707555040553,-500.0,0.00022136,2]
[313663902,1707555040563,-2245.47,0.00022136,2]
[313663903,1707555040572,-525.04272941,0.00022136,2]
[313663904,1707555040582,-500.0,0.00022136,2]
[313663905,1707555040592,-9566.37,0.00022136,2]
[313663906,1707555040602,-500.0,0.00022136,2]
[313663907,1707555040612,-961.41,0.00022136,2]
[313663908,1707555040622,-630.46,0.00022136,2]
[313663909,1707555040632,-822.34,0.00022136,2]
[313663910,1707555040641,-7621.04,0.00022136,2]
[313663911,1707555040651,-1911.23,0.00022136,2]
[313663913,1707555040660,-917.6,0.00022136,2]
[313663914,1707555040669,-1213.43,0.00022136,2]
[313663917,1707555040679,-500.0,0.00022136,2]
[313663919,1707555040690,-17846.88,0.00022136,2]
[313663920,1707555040699,-5414.74,0.00022136,2]
[313663921,1707555040708,-500.0,0.00022136,2]
[313663922,1707555040718,-2117.94,0.00022136,2]
[313663923,1707555040727,-4711.31,0.00022136,2]
[313663924,1707555040737,-940.69,0.00022136,2]
[313663925,1707555040746,-1521.32,0.00022136,2]
[313663926,1707555040755,-500.0,0.00022136,2]
[313663927,1707555040764,-7093.12,0.00022136,2]
[313663928,1707555040774,-1342.24,0.00022136,2]
[313663929,1707555040783,-500.0,0.00022136,2]
[313663930,1707555040792,-1849.71,0.00022136,2]
[313663931,1707555040802,-1563.75871108,0.00022136,2]
[313663960,1707555041644,-2600.04,0.00021794,3]
[313663962,1707555041654,-516.98128892,0.00022136,2]
[313663964,1707555041665,-964.43129109,0.00022136,2]
[313664056,1707555044837,-1196.04090975,0.00022136,2]
[313664687,1707555463947,-1948.0276469,0.00019176,2]
[313664688,1707555463969,-768.99144982,0.00019177,2]
[313664689,1707555463989,-169.22422,0.00019178,2]
[313664690,1707555464011,-2113.75668328,0.00019991,2]
[313664742,1707556234428,-677.93570276,0.00018786,2]
[313664743,1707556234442,-960.41812004,0.00018786,2]
[313664744,1707556234453,-1238.44451208,0.000189,2]
[313664745,1707556234465,-161.8881942,0.00018918,2]
[313664746,1707556234479,-22.1151008,0.00018918,2]
[313664747,1707556234490,-1916.93264615,0.00018932,2]
[313664748,1707556234509,-5870.95042504,0.00018932,2]
[313664779,1707556240394,-3551.44747451,0.00018932,2]
[313664780,1707556240404,-607.76381552,0.00019142,2]
[313664781,1707556240470,-222.99553768,0.00019142,2]
[313664782,1707556240481,-193.36767584,0.0002,2]
[313664783,1707556240491,-154.90705577,0.00020112,2]
[313664784,1707556240502,-200.0,0.00020123,2]
[313664785,1707556240512,-1839.68,0.00020205,3]
[313664786,1707556240523,-3508.15,0.00020205,3]
[313664787,1707556240533,-2923.46,0.00020205,3]
[313664788,1707556240544,-849.46172524,0.00020213,2]
[313664789,1707556240554,-862.77003859,0.00020213,2]
[313664790,1707556240564,-238.56122868,0.00020214,2]
[313664791,1707556240575,-2562.49970072,0.00020214,2]
[313664792,1707556240586,-167.40104025,0.00020215,2]
[313664793,1707556240596,-83937.39539652,0.00020215,2]
[313664794,1707556240607,-19138.64568776,0.00020216,2]
[313664795,1707556240617,-50000.0,0.00020217,2]
[313664796,1707556240627,-314.64703141,0.00020228,2]
[313664797,1707556240637,-186.00175101,0.00020228,2]
[313664798,1707556240659,-1679.0412921,0.00020228,2]
[313664799,1707556240675,-221.55872958,0.00020822,2]
[313664800,1707556240689,-620.00202592,0.00021553,2]
[313664801,1707556240701,-677.17250505,0.00021817,2]
[313664802,1707556240714,-34280.01708425,0.00021912,2]
[313664803,1707556240727,-375.905843,0.00021914,2]
[313664804,1707556240739,-156.20177159,0.00021914,2]
[313664805,1707556240751,-20933.53573456,0.00021914,2]
[313664806,1707556240766,-1201.92575629,0.00021915,2]
[313664808,1707556240777,-167.19218389,0.00021915,2]
[313664811,1707556240788,-155.07288426,0.00021915,2]
[313664812,1707556240800,-261.88794378,0.00021915,2]
[313664813,1707556240813,-19922.00560303,0.00021915,2]
[313664814,1707556240825,-2110.10399171,0.00021915,2]
[313664816,1707556240837,-709.18226551,0.00021915,2]
[313664818,1707556240849,-37068.7030693,0.00021916,2]
[313664819,1707556240860,-500.0,0.00021917,2]
[313664820,1707556240869,-500.0,0.00021917,2]
[313664821,1707556240879,-500.0,0.00021917,2]
[313664822,1707556240889,-556.25323954,0.00021917,2]
[313664831,1707556241099,-500.0,0.00021917,2]
[313664833,1707556241114,-500.0,0.00021917,2]
[313664834,1707556241124,-500.0,0.00021917,2]
[313664836,1707556241133,-455.96972701,0.00021917,2]
[313664837,1707556241143,-500.0,0.00021917,2]
[313664838,1707556241152,-500.0,0.00021917,2]
[313664839,1707556241162,-185.0083529,0.00021917,2]
[313664841,1707556241171,-500.0,0.00021917,2]
[313664842,1707556241181,-500.0,0.00021917,2]
[313664843,1707556241190,-757.81,0.00021917,2]
[313664844,1707556241200,-500.0,0.00021917,2]
[313664845,1707556241209,-500.0,0.00021917,2]
[313664846,1707556241218,-151.0,0.00021917,2]
[313664847,1707556241229,-500.0,0.00021917,2]
[313664849,1707556241238,-500.0,0.00021917,2]
[313664851,1707556241248,-500.0,0.00021917,2]
[313664852,1707556241258,-500.0,0.00021917,2]
[313664854,1707556241267,-500.0,0.00021917,2]
[313664856,1707556241278,-754.73,0.00021917,2]
[313664858,1707556241287,-2117.94,0.00021917,2]
[313664860,1707556241297,-1342.24,0.00021917,2]
[313664861,1707556241306,-500.0,0.00021917,2]
[313664862,1707556241315,-2059.2,0.00021917,2]
[313664863,1707556241325,-1255.72,0.00021917,2]
[313664864,1707556241334,-500.0,0.00021917,2]
[313664865,1707556241344,-487.65756527,0.00021917,2]
[313664866,1707556241353,-790.95,0.00021917,2]
[313664867,1707556241363,-961.41,0.00021917,2]
[313664868,1707556241372,-500.0,0.00021917,2]
[313664870,1707556241381,-500.0,0.00021917,2]
[313664872,1707556241390,-854.29,0.00021917,2]
[313664874,1707556241400,-500.0,0.00021917,2]
[313664876,1707556241410,-1911.23,0.00021917,2]
[313664878,1707556241419,-1432.38,0.00021917,2]
[313664880,1707556241429,-834.69,0.00021917,2]
[313664882,1707556241439,-520.76,0.00021917,2]
[313664884,1707556241448,-572.53,0.00021917,2]
[313664886,1707556241457,-500.0,0.00021917,2]
[313664888,1707556241467,-500.0,0.00021917,2]
[313664890,1707556241477,-9897.37,0.00021917,2]
[313664892,1707556241486,-500.0,0.00021917,2]
[313664894,1707556241495,-500.0,0.00021917,2]
[313664896,1707556241504,-1521.32,0.00021917,2]
[313664898,1707556241514,-17846.88,0.00021917,2]
[313664900,1707556241523,-500.0,0.00021917,2]
[313664902,1707556241531,-1818.63,0.00021917,2]
[313664903,1707556241541,-500.0,0.00021917,2]
[313664905,1707556241550,-500.0,0.00021917,2]
[313664907,1707556241559,-10149.24,0.00021917,2]
[313664909,1707556241568,-2245.47,0.00021917,2]
[313664911,1707556241577,-500.0,0.00021917,2]
[313664913,1707556241586,-500.0,0.00021917,2]
[313664915,1707556241595,-553.42,0.00021917,2]
[313664917,1707556241605,-586.91,0.00021917,2]
[313664919,1707556241614,-500.0,0.00021917,2]
[313664921,1707556241624,-9566.37,0.00021917,2]
[313664923,1707556241633,-630.46,0.00021917,2]
[313664925,1707556241643,-500.0,0.00021917,2]